bitfinex-derivatives/quotes_BTCF0:USTF0_20250127
["timestamp","ask_amount","ask_price","bid_price","bid_amount"]
[1737936334289,0.02340736,103040.0,103020.0,0.57316216]
[1737936334894,0.02340736,103040.0,103030.0,0.3608]
[1737936336092,0.02340736,103040.0,103020.0,0.57316216]
[1737936336289,0.02340736,103040.0,103030.0,0.3608]
[1737936336693,0.02340736,103040.0,103030.0,0.49646882]
[1737936339496,0.38420736,103040.0,103030.0,0.13566882]
[1737936339689,0.02340736,103040.0,103030.0,0.49646882]
[1737936340286,0.02340736,103040.0,103030.0,0.13566882]
[1737936340697,0.02340736,103040.0,103030.0,0.49646882]
[1737936341797,0.02340736,103040.0,103020.0,0.49646882]
[1737936342004,0.02340736,103040.0,103030.0,0.13566882]
[1737936342691,0.38420736,103040.0,103020.0,0.13566882]
[1737936342895,0.0782,103030.0,103020.0,0.13566882]
[1737936343199,0.439,103030.0,103020.0,0.13566882]
[1737936343386,0.439,103030.0,103020.0,0.001]
[1737936343592,0.739,103030.0,103010.0,0.00014602]
[1737936343786,0.3608,103020.0,103010.0,0.00014602]
[1737936344196,0.6608,103020.0,103010.0,0.00014602]
[1737936344394,0.6608,103020.0,102990.0,0.13566882]
[1737936344595,0.3608,103000.0,102980.0,1.86748791]
[1737936344888,0.3608,102990.0,102980.0,1.86748791]
[1737936345200,0.3608,102990.0,102980.0,0.36748791]
[1737936345395,0.3608,102990.0,102980.0,0.23181909]
[1737936345594,0.6608,102990.0,102980.0,0.23181909]
[1737936345893,0.79646882,102990.0,102980.0,0.11061909]
[1737936346089,0.79646882,102990.0,102970.0,0.6375025]
[1737936346392,0.79646882,102990.0,102970.0,0.34772864]
[1737936346393,0.3608,102980.0,102970.0,0.34772864]
[1737936346593,0.3608,102980.0,102970.0,0.13566882]
[1737936346799,0.3608,102990.0,102970.0,0.13566882]
[1737936346993,0.3608,102990.0,102960.0,0.36089043]
[1737936347194,0.36094602,102990.0,102980.0,0.004]
[1737936347399,0.49661484,102990.0,102980.0,0.004]
[1737936347597,0.79661484,102990.0,102980.0,0.004]
[1737936347903,0.36094602,102990.0,102980.0,0.004]
[1737936348403,0.00014602,102990.0,102980.0,0.50046882]
[1737936348604,0.00014602,102990.0,102980.0,0.50146882]
[1737936349003,0.00014602,102990.0,102980.0,0.49746882]
[1737936349403,0.00114602,102990.0,102980.0,0.49646882]
[1737936349606,0.00614602,102990.0,102980.0,0.49646882]
[1737936350900,0.01970662,102990.0,102980.0,1.00167461]
[1737936351098,0.18009687,103030.0,102980.0,1.64909147]
[1737936351307,0.18009687,103030.0,103020.0,0.49646882]
[1737936351498,0.18009687,103030.0,103020.0,0.85726882]
[1737936352105,0.18009687,103030.0,103020.0,0.85309556]
[1737936353006,0.16156271,103030.0,103020.0,0.85309556]
[1737936353399,0.16156271,103030.0,103020.0,2.35309556]
[1737936354501,0.16156271,103030.0,103020.0,2.42789556]
[1737936355112,0.11570349,103060.0,103020.0,3.27409875]
[1737936355307,0.78642035,103090.0,103050.0,0.63213764]
[1737936355607,0.78642035,103090.0,103080.0,0.27133764]
[1737936355808,0.80770035,103090.0,103080.0,0.27133764]
[1737936356401,0.80770035,103090.0,103080.0,0.13566882]
[1737936356912,0.80770035,103090.0,103080.0,0.27133764]
[1737936357208,0.80770035,103090.0,103080.0,0.13566882]
[1737936358000,0.44690035,103090.0,103080.0,0.63213764]
[1737936358511,0.44690035,103090.0,103080.0,1.31914322]
[1737936358712,0.4283662,103090.0,103080.0,1.31914322]
[1737936358902,0.4293662,103090.0,103080.0,2.82014322]
[1737936359798,0.23723619,103090.0,103080.0,2.82014322]
[1737936360004,0.30076975,103100.0,103080.0,2.82014322]
[1737936360202,0.30076975,103100.0,103090.0,0.49646882]
[1737936360405,0.30076975,103100.0,103090.0,0.63213764]
[1737936360606,0.04485771,103100.0,103090.0,1.04158209]
[1737936360915,0.0746,103140.0,103090.0,1.21578]
[1737936361106,0.0746,103140.0,103130.0,0.49646882]
[1737936361304,0.20217509,103150.0,103130.0,0.49646882]
[1737936361609,0.20217509,103150.0,103140.0,0.13566882]
[1737936361798,0.20217509,103150.0,103140.0,0.49646882]
[1737936362203,0.20217509,103150.0,103140.0,0.13566882]
[1737936362913,0.22640509,103150.0,103140.0,0.49646882]
[1737936363114,0.22640509,103150.0,103140.0,0.13566882]
[1737936363408,0.30200509,103150.0,103140.0,0.13666882]
[1737936363610,0.85676509,103150.0,103140.0,0.13666882]
[1737936365003,0.85676509,103150.0,103120.0,0.00014602]
[1737936365004,0.193997,103130.0,103120.0,0.00014602]
[1737936365317,0.17546284,103130.0,103120.0,0.00014602]
[1737936366011,0.53626284,103130.0,103120.0,0.13581484]
[1737936366805,0.53626284,103130.0,103120.0,0.27148366]
[1737936367317,0.17646284,103130.0,103120.0,0.27148366]
[1737936367712,0.53726284,103130.0,103120.0,0.13581484]
[1737936367920,0.194016,103120.0,103110.0,0.13566882]
[1737936368120,0.554816,103120.0,103110.0,0.13566882]
[1737936368614,0.554816,103120.0,103090.0,1.50145474]
[1737936368615,0.409307,103120.0,103090.0,1.50145474]
[1737936368816,0.554816,103120.0,103110.0,0.13566882]
[1737936369015,0.915616,103120.0,103110.0,0.13566882]
[1737936369319,0.91576202,103120.0,103110.0,0.13566882]
[1737936369519,0.91776202,103120.0,103110.0,0.13566882]
[1737936369913,0.19616202,103120.0,103110.0,0.13566882]
[1737936370311,0.00214602,103120.0,103110.0,0.13566882]
[1737936370518,0.00314602,103120.0,103110.0,0.69050382]
[1737936370717,0.00314602,103120.0,103110.0,0.93211443]
[1737936372314,0.00314602,103120.0,103110.0,0.79644561]
[1737936372525,0.00314602,103120.0,103110.0,0.69050382]
[1737936373117,0.00314602,103120.0,103110.0,0.70075655]
[1737936373522,0.19716202,103120.0,103110.0,0.50672155]
[1737936373912,0.19716202,103120.0,103110.0,2.00672155]
[1737936374221,0.19716202,103120.0,103110.0,2.19050382]
[1737936374624,0.00314602,103120.0,103110.0,2.19050382]
[1737936374818,0.00314602,103120.0,103110.0,1.82970382]
[1737936375320,0.19716202,103120.0,103110.0,1.82970382]
[1737936375714,0.19716202,103120.0,103110.0,2.19050382]
[1737936375919,0.55796202,103120.0,103110.0,1.82970382]
[1737936376225,0.00314602,103120.0,103110.0,2.43638974]
[1737936376519,0.00314602,103120.0,103110.0,2.51323174]
[1737936376716,0.00314602,103120.0,103110.0,2.62344884]
[1737936377518,0.00314602,103120.0,103110.0,2.52646974]
[1737936377723,0.00314602,103120.0,103110.0,2.39080092]
[1737936378915,0.00314602,103120.0,103110.0,0.80072092]
[1737936379225,0.19716202,103120.0,103110.0,0.32970382]
[1737936379421,0.19716202,103120.0,103110.0,0.69050382]
[1737936379921,0.1966222,103120.0,103110.0,0.69050382]
[1737936380427,0.0026062,103120.0,103110.0,0.69050382]
[1737936380622,0.0026062,103120.0,103110.0,0.93723186]
[1737936381019,0.0026062,103120.0,103110.0,0.80156304]
[1737936381719,0.0026062,103120.0,103110.0,0.93723186]
[1737936382217,0.0026062,103120.0,103110.0,1.12365096]
[1737936382925,0.0026062,103120.0,103110.0,0.69050382]
[1737936383125,0.1966222,103120.0,103110.0,0.69050382]
[1737936384534,0.0026062,103120.0,103110.0,0.92827698]
[1737936385029,0.0026062,103120.0,103110.0,2.42827698]
[1737936386028,0.0026062,103120.0,103110.0,2.52525608]
[1737936386735,0.371697,103150.0,103140.0,0.193978]
[1737936386923,0.371697,103150.0,103140.0,0.69044682]
[1737936387421,0.37115718,103150.0,103140.0,0.69044682]
[1737936389124,0.02369018,103150.0,103140.0,0.82611564]
[1737936389334,0.02369018,103150.0,103140.0,0.93210829]
[1737936389629,0.02369018,103150.0,103140.0,0.79643947]
[1737936389830,0.02369018,103150.0,103140.0,0.79743947]
[1737936390424,0.02369018,103150.0,103140.0,2.29743947]
[1737936390827,0.01265422,103150.0,103140.0,2.29743947]
[1737936392020,0.20661422,103150.0,103140.0,2.29743947]
[1737936392524,0.20661422,103150.0,103140.0,2.1137606]
[1737936392731,0.20661422,103150.0,103140.0,0.49746882]
[1737936393033,0.28561422,103150.0,103140.0,0.49746882]
[1737936393236,0.36511422,103150.0,103140.0,1.99746882]
[1737936394029,0.72591422,103150.0,103140.0,0.001]
[1737936394222,0.72591422,103150.0,103130.0,0.13581484]
[1737936394223,0.53195422,103150.0,103130.0,0.13581484]
[1737936394428,0.193978,103140.0,103130.0,0.36094602]
[1737936394630,0.193978,103140.0,103130.0,1.86094602]
[1737936394928,0.193978,103140.0,103130.0,0.65071988]
[1737936395237,0.193978,103140.0,103130.0,2.34471688]
[1737936395628,0.193978,103140.0,103130.0,2.4803857]
[1737936396134,0.1585,103150.0,103130.0,2.2873887]
[1737936396333,0.1585,103150.0,103140.0,0.69044682]
[1737936397227,0.0795,103150.0,103140.0,0.79179351]
[1737936397429,0.165796,103170.0,103140.0,0.73448433]
[1737936397629,0.35222481,103170.0,103160.0,0.82607864]
[1737936397831,0.15829781,103170.0,103160.0,0.82607864]
[1737936398034,0.35221981,103170.0,103160.0,0.82607864]
[1737936400739,0.35221981,103170.0,103160.0,2.32607864]
[1737936400937,0.07939781,103170.0,103160.0,2.68687864]
[1737936401243,0.07939781,103170.0,103160.0,2.79181254]
[1737936403740,0.08,103180.0,103160.0,0.97269545]
[1737936403938,0.193922,103170.0,103160.0,0.56522573]
[1737936404137,0.273908,103180.0,103170.0,0.193922]
[1737936404336,0.273908,103180.0,103170.0,0.32959082]
[1737936405542,0.273908,103180.0,103170.0,0.69039082]
[1737936405745,0.08,103180.0,103170.0,0.69039082]
[1737936408544,0.273903,103180.0,103170.0,0.69139082]
[1737936409444,0.08,103180.0,103170.0,0.69139082]
[1737936410348,0.08,103180.0,103170.0,2.19139082]
[1737936410644,0.273903,103180.0,103170.0,2.19139082]
[1737936412350,0.273903,103180.0,103170.0,2.42238816]
[1737936413451,0.273903,103180.0,103170.0,2.06158816]
[1737936413654,0.273903,103180.0,103170.0,0.36801202]
[1737936414043,0.273903,103180.0,103170.0,2.06193402]
[1737936414351,0.273903,103180.0,103170.0,2.42273402]
[1737936414547,0.08,103180.0,103170.0,2.42273402]
[1737936415055,0.1,103200.0,103190.0,0.193884]
[1737936415239,0.29763088,103230.0,103220.0,0.193828]
[1737936415549,0.29763088,103230.0,103220.0,0.69029682]
[1737936415743,0.14423088,103230.0,103220.0,2.4313699]
[1737936416049,0.17162692,103250.0,103220.0,2.65896397]
[1737936416244,0.17162692,103250.0,103240.0,1.18672864]
[1737936416651,0.17162692,103250.0,103240.0,1.29666965]
[1737936416949,0.193772,103250.0,103240.0,0.85726882]
[1737936417551,0.343772,103250.0,103240.0,0.99393764]
[1737936417755,0.343772,103250.0,103240.0,0.85826882]
[1737936418248,0.343772,103250.0,103240.0,0.99393764]
[1737936418953,0.32523784,103250.0,103240.0,0.99393764]
[1737936419153,0.32523784,103250.0,103240.0,0.85826882]
[1737936419353,0.193791,103240.0,103230.0,0.13581413]
[1737936419659,0.628891,103240.0,103230.0,0.13581413]
[1737936420541,0.62835218,103240.0,103230.0,0.00014531]
[1737936420747,0.193828,103220.0,103210.0,0.13566882]
[1737936421049,0.832001,103240.0,103200.0,0.13712205]
[1737936421050,0.193847,103210.0,103200.0,0.13712205]
[1737936421252,0.193847,103210.0,103200.0,0.46665687]
[1737936421853,0.193847,103210.0,103200.0,0.48485069]
[1737936422250,0.554647,103210.0,103200.0,0.34918187]
[1737936422444,0.554647,103210.0,103200.0,0.48339746]
[1737936422445,0.274047,103210.0,103200.0,0.48339746]
[1737936422653,0.274047,103210.0,103200.0,0.61906628]
[1737936422850,0.274047,103210.0,103200.0,0.67826346]
[1737936423049,0.274047,103210.0,103200.0,0.48439746]
[1737936423259,0.351747,103210.0,103200.0,0.48539746]
[1737936423554,0.351747,103210.0,103200.0,0.34972864]
[1737936423948,0.431747,103210.0,103200.0,0.48539746]
[1737936424352,0.431747,103210.0,103200.0,0.48439746]
[1737936424554,0.431747,103210.0,103200.0,0.55721283]
[1737936424753,0.431747,103210.0,103200.0,0.20948419]
[1737936424754,0.792547,103210.0,103200.0,0.20948419]
[1737936424957,0.792547,103210.0,103200.0,0.001]
[1737936425344,1.092547,103210.0,103200.0,0.001]
[1737936425651,1.092547,103210.0,103180.0,0.40305566]
[1737936425652,0.193884,103190.0,103180.0,0.40305566]
[1737936426356,0.554684,103190.0,103180.0,0.15855566]
[1737936426557,0.854684,103190.0,103180.0,0.15855566]
[1737936426758,0.854684,103190.0,103170.0,0.28783731]
[1737936426759,0.193903,103180.0,103170.0,0.28783731]
[1737936426943,0.554703,103180.0,103170.0,1.78798262]
[1737936427350,0.554703,103180.0,103170.0,0.28798262]
[1737936427557,0.554703,103180.0,103170.0,0.16398262]
[1737936428464,0.555703,103180.0,103170.0,0.16398262]
[1737936428846,0.87028419,103180.0,103130.0,0.22864064]
[1737936429049,0.554778,103140.0,103130.0,0.22864064]
[1737936429446,0.76326219,103140.0,103130.0,0.22864064]
[1737936429649,0.84906219,103140.0,103130.0,0.22864064]
[1737936429962,0.92752219,103140.0,103130.0,0.22864064]
[1737936430154,0.193997,103130.0,103120.0,0.40582872]
[1737936430354,0.76328119,103130.0,103120.0,0.40582872]
[1737936430554,0.86928419,103130.0,103110.0,0.75848267]
[1737936430750,0.554816,103120.0,103110.0,0.75848267]
[1737936431154,0.579056,103120.0,103110.0,0.75848267]
[1737936431552,0.879056,103120.0,103110.0,0.75848267]
[1737936431951,0.579056,103120.0,103110.0,0.75848267]
[1737936432349,0.879056,103120.0,103110.0,0.75848267]
[1737936432555,0.879056,103120.0,103100.0,0.10014531]
[1737936432556,0.68504,103120.0,103100.0,0.10014531]
[1737936432752,0.84887919,103110.0,103100.0,0.10014531]
[1737936433160,0.554835,103110.0,103100.0,0.10014531]
[1737936433461,0.640275,103110.0,103100.0,0.10014531]
[1737936433856,0.64038122,103110.0,103100.0,0.10014531]
[1737936434057,0.64035278,103110.0,103100.0,0.10014531]
[1737936434363,0.640275,103110.0,103100.0,0.10114531]
[1737936435162,0.194035,103110.0,103100.0,0.10114531]
[1737936436363,0.554835,103110.0,103100.0,0.10114531]
[1737936436868,0.554835,103110.0,103100.0,0.10014531]
[1737936437166,0.556835,103110.0,103100.0,0.10014531]
[1737936438366,0.557835,103110.0,103100.0,0.10014531]
[1737936438768,0.557835,103110.0,103100.0,1.60014531]
[1737936439072,0.19714696,103110.0,103100.0,1.8086295]
[1737936439367,0.19714696,103110.0,103100.0,2.0026835]
[1737936439669,0.557835,103110.0,103100.0,1.60014531]
[1737936440060,0.53930085,103110.0,103100.0,1.60014531]
[1737936440374,0.53930085,103110.0,103100.0,0.10014531]
[1737936440560,0.53730085,103110.0,103100.0,0.10414531]
[1737936440868,0.53738507,103110.0,103100.0,1.60414531]
[1737936441065,0.53740613,103110.0,103100.0,0.10414531]
[1737936441255,0.53630085,103110.0,103100.0,0.10514531]
[1737936441455,0.5363876,103110.0,103100.0,0.10514531]
[1737936441661,0.53630085,103110.0,103100.0,0.10514531]
[1737936442058,0.53930085,103110.0,103100.0,0.10014531]
[1737936442261,0.17850085,103110.0,103100.0,0.46094531]
[1737936442461,0.17856915,103110.0,103100.0,0.18144531]
[1737936442662,0.0030683,103110.0,103100.0,0.9447835]
[1737936442966,0.193983,103140.0,103120.0,0.194008]
[1737936443162,0.193983,103140.0,103120.0,0.554808]
[1737936443363,0.193963,103150.0,103130.0,0.76327019]
[1737936443666,0.193963,103150.0,103130.0,2.14488419]
[1737936443967,0.193963,103150.0,103140.0,0.16]
[1737936444165,0.19415197,103150.0,103140.0,0.16]
[1737936444661,0.19415197,103150.0,103140.0,0.714778]
[1737936444861,0.19415197,103150.0,103140.0,0.5208]
[1737936445067,0.19410831,103150.0,103140.0,0.5208]
[1737936445267,0.19415197,103150.0,103140.0,0.714778]
[1737936445570,0.19415197,103150.0,103140.0,0.16]
[1737936445870,0.19615197,103150.0,103140.0,0.16]
[1737936446265,0.00218897,103150.0,103140.0,0.714778]
[1737936446570,0.19614897,103150.0,103140.0,0.353978]
[1737936447369,0.55635592,103150.0,103140.0,0.16]
[1737936447961,0.55635592,103150.0,103140.0,0.161]
[1737936448364,0.193945,103160.0,103140.0,0.715767]
[1737936448567,0.193945,103160.0,103150.0,0.49617295]
[1737936448768,0.193945,103160.0,103150.0,0.3608]
[1737936448965,0.193945,103160.0,103150.0,0.49617295]
[1737936449367,0.554745,103160.0,103140.0,0.85013995]
[1737936449568,0.554745,103160.0,103140.0,0.49033995]
[1737936449769,0.554745,103160.0,103150.0,0.001]
[1737936450965,0.55420418,103160.0,103150.0,0.001]
[1737936451166,0.56471801,103170.0,103150.0,0.33033295]
[1737936451362,0.19407331,103170.0,103160.0,0.13537295]
[1737936452174,0.00014531,103170.0,103160.0,0.69011395]
[1737936452369,0.00014531,103170.0,103160.0,0.77221395]
[1737936452878,0.00114531,103170.0,103160.0,0.77221395]
[1737936453071,0.5611574,103200.0,103160.0,0.7136459]
[1737936453281,0.193887,103190.0,103180.0,0.13537295]
[1737936453574,0.193887,103190.0,103180.0,1.579]
[1737936454478,0.1759459,103190.0,103180.0,1.579]
[1737936455178,0.1759459,103190.0,103180.0,0.079]
[1737936455379,0.1759459,103190.0,103180.0,0.08]
[1737936457877,0.1759459,103190.0,103180.0,0.001]
[1737936458084,0.67211885,103190.0,103180.0,0.001]
[1737936460081,0.193941,103160.0,103150.0,0.0797]
[1737936460278,0.554741,103160.0,103150.0,0.0797]
[1737936461085,0.193941,103160.0,103150.0,0.40903295]
[1737936461281,0.27891231,103170.0,103150.0,0.76983295]
[1737936461584,0.19407231,103170.0,103160.0,0.13537295]
[1737936462080,0.00014531,103170.0,103160.0,0.49617295]
[1737936462285,0.00014531,103170.0,103160.0,1.82931395]
[1737936462475,0.00014531,103170.0,103160.0,2.19011395]
[1737936462985,0.00114531,103170.0,103160.0,2.19011395]
[1737936463392,0.37095832,103200.0,103160.0,1.99617295]
[1737936463586,0.193893,103190.0,103170.0,0.77098695]
[1737936464592,0.19403593,103190.0,103170.0,0.77113226]
[1737936464786,0.193903,103180.0,103170.0,0.77113226]
[1737936465191,0.193903,103180.0,103170.0,0.77213226]
[1737936465789,0.193903,103180.0,103170.0,0.63675931]
[1737936466187,0.193903,103180.0,103170.0,0.63575931]
[1737936466387,0.193903,103180.0,103170.0,0.44284531]
[1737936467488,0.19363603,103180.0,103170.0,0.44284531]
[1737936468394,0.19363603,103180.0,103170.0,0.08204531]
[1737936469093,0.55443603,103180.0,103170.0,0.08204531]
[1737936469300,0.55443603,103180.0,103170.0,0.00114531]
[1737936470083,0.19363603,103180.0,103170.0,0.37703812]
[1737936470288,0.19363603,103180.0,103170.0,0.70633307]
[1737936471099,0.19363603,103180.0,103170.0,0.70634094]
[1737936471301,0.55443603,103180.0,103170.0,0.01624599]
[1737936471700,0.63815603,103180.0,103170.0,0.01624599]
[1737936472200,0.19363603,103180.0,103170.0,0.15161894]
[1737936472400,0.19363603,103180.0,103170.0,0.38801882]
[1737936472994,0.19403393,103190.0,103180.0,0.193903]
[1737936473195,0.17221573,103190.0,103180.0,0.77189696]
[1737936473703,0.19643573,103190.0,103180.0,1.91109696]
[1737936474005,0.19643573,103190.0,103180.0,2.27189696]
[1737936474192,0.16841498,103190.0,103180.0,2.20522837]
[1737936474398,0.16841498,103190.0,103180.0,2.32334892]
[1737936474600,0.16841498,103190.0,103180.0,2.40134892]
[1737936474905,0.7378623,103200.0,103180.0,2.40134892]
[1737936475092,0.7378623,103200.0,103180.0,2.42558813]
[1737936475302,0.7378623,103200.0,103180.0,2.42658813]
[1737936475599,0.193884,103190.0,103180.0,2.42658813]
[1737936475902,0.193884,103190.0,103180.0,2.06578813]
[1737936476094,0.193884,103190.0,103180.0,2.02336758]
[1737936476497,0.193884,103190.0,103180.0,2.02436758]
[1737936476798,0.193884,103190.0,103180.0,1.54139163]
[1737936476997,0.193884,103190.0,103180.0,0.04139163]
[1737936477203,0.193884,103190.0,103180.0,0.04039163]
[1737936478100,0.554684,103190.0,103180.0,0.01615242]
[1737936478306,0.193884,103190.0,103180.0,0.15152537]
[1737936479100,0.193884,103190.0,103180.0,0.15052537]
[1737936479296,0.193884,103190.0,103180.0,0.15152537]
[1737936480503,0.193884,103190.0,103180.0,0.34542837]
[1737936480897,0.31988528,103200.0,103180.0,0.70622837]
[1737936481098,0.31987928,103200.0,103190.0,0.32925695]
[1737936481305,0.12601328,103200.0,103190.0,0.34440937]
[1737936481604,0.31987928,103200.0,103190.0,0.42350937]
[1737936482004,0.20402432,103200.0,103190.0,0.42350937]
[1737936482198,0.70019727,103200.0,103190.0,0.01515242]
[1737936482802,0.56482432,103200.0,103190.0,0.01515242]
[1737936483402,0.56482432,103200.0,103190.0,0.01615242]
[1737936485205,0.56482432,103200.0,103190.0,0.01715242]
[1737936485599,0.70019727,103200.0,103190.0,0.01715242]
[1737936485899,0.193903,103180.0,103170.0,0.00014531]
[1737936486103,0.554703,103180.0,103170.0,0.00014531]
[1737936487304,0.554703,103180.0,103170.0,0.00114531]
[1737936487709,0.575343,103180.0,103170.0,0.00114531]
[1737936488005,0.02064,103180.0,103170.0,0.33044026]
[1737936488212,0.02064,103180.0,103170.0,0.69124026]
[1737936488599,0.02064,103180.0,103170.0,0.33044026]
[1737936489205,0.554687,103190.0,103170.0,0.69124026]
[1737936489406,0.55414718,103190.0,103180.0,0.13537295]
[1737936489806,0.67026489,103190.0,103180.0,0.13537295]
[1737936490408,0.67126489,103190.0,103180.0,0.13537295]
[1737936490604,0.67326489,103190.0,103180.0,0.13537295]
[1737936491203,0.67126489,103190.0,103180.0,0.13537295]
[1737936491403,0.67326489,103190.0,103180.0,0.13637295]
[1737936491808,0.6729546,103190.0,103180.0,0.13637295]
[1737936492409,0.3121546,103190.0,103180.0,0.33027595]
[1737936494913,0.3121546,103190.0,103180.0,0.001]
[1737936495111,0.6729546,103190.0,103180.0,0.001]
[1737936497825,0.6729546,103190.0,103180.0,0.13637295]
[1737936498121,0.3121546,103190.0,103180.0,0.33027595]
[1737936499113,0.6729546,103190.0,103180.0,0.33027595]
[1737936500013,0.3121546,103190.0,103180.0,0.33027595]
[1737936501016,0.3121546,103190.0,103180.0,1.83027595]
[1737936501418,0.3121546,103190.0,103180.0,0.33027595]
[1737936501613,0.31300171,103190.0,103180.0,0.33027595]
[1737936503421,0.67380171,103190.0,103180.0,0.001]
[1737936503616,0.80917466,103190.0,103180.0,0.001]
[1737936503817,0.726384,103190.0,103180.0,0.001]
[1737936504017,0.775984,103190.0,103180.0,0.001]
[1737936506024,0.003,103190.0,103180.0,0.33027595]
[1737936506223,0.003,103190.0,103180.0,0.40957595]
[1737936506522,0.76343203,103200.0,103190.0,0.193884]
[1737936506523,0.12627603,103200.0,103190.0,0.193884]
[1737936506732,0.11611771,103200.0,103190.0,0.77255695]
[1737936507720,0.11711771,103200.0,103190.0,0.77355695]
[1737936508028,0.11811771,103200.0,103190.0,0.77455695]
[1737936508220,0.10016081,103200.0,103190.0,0.77455695]
[1737936508526,0.10016081,103200.0,103190.0,2.27455695]
[1737936508728,0.17503398,103200.0,103190.0,2.27455695]
[1737936508929,0.36889998,103200.0,103190.0,2.27455695]
[1737936509221,0.36789998,103200.0,103190.0,2.27355695]
[1737936510326,0.36789998,103200.0,103190.0,2.28870485]
[1737936510726,0.36789998,103200.0,103190.0,2.1533319]
[1737936511228,0.36789998,103200.0,103190.0,0.78870485]
[1737936511826,0.36789998,103200.0,103190.0,2.28870485]
[1737936512027,0.36789998,103200.0,103190.0,2.28861883]
[1737936512424,0.36789998,103200.0,103190.0,2.27355695]
[1737936512620,0.36789998,103200.0,103190.0,0.638184]
[1737936512924,0.194866,103200.0,103190.0,0.78331726]
[1737936515416,0.194866,103200.0,103190.0,0.79841713]
[1737936516323,0.194866,103200.0,103190.0,0.78331726]
[1737936518531,0.194866,103200.0,103190.0,0.73811354]
[1737936520128,0.194866,103200.0,103190.0,0.96902267]
[1737936520429,0.194866,103200.0,103190.0,0.60822267]
[1737936521827,0.001,103200.0,103190.0,0.60822267]
[1737936522029,0.001,103200.0,103190.0,0.96902267]
[1737936522432,0.001,103200.0,103190.0,0.60822267]
[1737936523032,0.001,103200.0,103190.0,0.37731354]
[1737936523329,0.001,103200.0,103190.0,0.73811354]
[1737936523527,0.08697999,103210.0,103200.0,0.193866]
[1737936523729,0.14502586,103220.0,103210.0,0.193847]
[1737936523918,0.14502586,103220.0,103210.0,0.74279608]
[1737936524124,0.14502586,103220.0,103210.0,2.24279608]
[1737936524428,0.543906,103230.0,103220.0,0.193828]
[1737936524627,0.72764298,103230.0,103220.0,0.28399723]
[1737936524832,0.36684298,103230.0,103220.0,0.64479723]
[1737936525126,0.17303398,103230.0,103220.0,0.73496646]
[1737936525332,0.07690078,103230.0,103220.0,0.73496646]
[1737936525832,0.05836663,103230.0,103220.0,0.64479723]
[1737936526135,0.05836663,103230.0,103220.0,0.73496646]
[1737936526428,0.05836663,103230.0,103220.0,0.83771853]
[1737936526628,0.20187298,103250.0,103240.0,0.19379]
[1737936526833,0.20187298,103250.0,103240.0,0.68970651]
[1737936527031,0.20187298,103250.0,103240.0,0.77060651]
[1737936527332,0.20187298,103250.0,103240.0,2.27060651]
[1737936527533,0.19376,103260.0,103240.0,2.16121651]
[1737936527720,0.19376,103260.0,103250.0,0.68968851]
[1737936528233,0.19376,103260.0,103250.0,0.554572]
[1737936528436,0.17522585,103260.0,103250.0,0.554572]
[1737936529830,0.17522585,103260.0,103250.0,0.555572]
[1737936530531,0.17522585,103260.0,103250.0,0.556572]
[1737936530736,0.17522585,103260.0,103250.0,0.69168851]
[1737936531630,0.17522585,103260.0,103250.0,0.556572]
[1737936531830,0.17522585,103260.0,103250.0,0.002]
[1737936532329,0.17522585,103260.0,103250.0,0.556572]
[1737936533034,0.17522585,103260.0,103250.0,0.69168851]
[1737936535735,0.17522585,103260.0,103250.0,0.002]
[1737936535736,0.67114236,103260.0,103250.0,0.002]
[1737936536232,0.67114236,103260.0,103250.0,0.13711651]
[1737936536233,0.17522585,103260.0,103250.0,0.13711651]
[1737936537037,0.17522585,103260.0,103250.0,0.002]
[1737936537637,0.53602585,103260.0,103250.0,0.002]
[1737936540644,0.67114236,103260.0,103250.0,0.002]
[1737936541556,0.75246236,103260.0,103250.0,0.002]
[1737936541944,1.05246236,103260.0,103250.0,0.002]
[1737936542141,0.61734585,103260.0,103250.0,0.002]
[1737936542350,0.75246236,103260.0,103250.0,0.002]
[1737936542554,0.87723651,103260.0,103230.0,0.00014531]
[1737936542757,1.05050751,103240.0,103230.0,0.00014531]
[1737936543257,0.915391,103240.0,103230.0,0.00014531]
[1737936543752,0.193791,103240.0,103230.0,0.49606182]
[1737936543957,0.193775,103250.0,103230.0,0.49606182]
[1737936544160,0.193775,103250.0,103240.0,0.84710751]
[1737936544456,0.193759,103260.0,103250.0,0.19377]
[1737936544643,0.193759,103260.0,103250.0,0.32888651]
[1737936544841,0.194759,103260.0,103250.0,0.13511651]
[1737936545046,0.555559,103260.0,103250.0,0.13511651]
[1737936545251,0.001,103260.0,103240.0,0.92759851]
[1737936545453,0.194753,103260.0,103250.0,0.13511651]
[1737936545762,0.001,103260.0,103250.0,0.32988851]
[1737936546058,0.001,103260.0,103250.0,0.69068851]
[1737936546452,0.194753,103260.0,103250.0,0.68968851]
[1737936546653,0.194753,103260.0,103250.0,0.64465674]
[1737936547051,0.17621884,103260.0,103250.0,0.64565674]
[1737936547449,0.53701884,103260.0,103250.0,0.28485674]
[1737936547649,0.53701884,103260.0,103250.0,0.28385674]
[1737936548360,0.53701884,103260.0,103250.0,0.09008474]
[1737936548855,0.53701884,103260.0,103250.0,1.59008474]
[1737936549057,0.53701884,103260.0,103250.0,1.5]
[1737936549254,0.193772,103250.0,103240.0,0.0788]
[1737936549455,0.193791,103240.0,103230.0,0.40316774]
[1737936549651,0.554591,103240.0,103230.0,0.40316774]
[1737936549856,0.72747574,103240.0,103230.0,0.40316774]
[1737936550153,0.193809,103230.0,103220.0,0.26007115]
[1737936550462,0.554609,103230.0,103220.0,0.26007115]
[1737936551156,0.64469374,103230.0,103220.0,0.26007115]
[1737936551859,0.193884,103190.0,103180.0,0.62128097]
[1737936552055,0.554684,103190.0,103180.0,0.53658097]
[1737936552254,0.554684,103190.0,103180.0,0.45428097]
[1737936552661,0.554684,103190.0,103180.0,0.13688046]
[1737936552856,0.554684,103190.0,103170.0,1.63531005]
[1737936552857,0.3608,103190.0,103170.0,1.63531005]
[1737936553053,0.3608,103190.0,103170.0,1.50014531]
[1737936553054,0.554703,103180.0,103170.0,1.50014531]
[1737936553356,0.554703,103180.0,103170.0,1.63545536]
[1737936553864,0.19401531,103200.0,103180.0,0.193903]
[1737936554049,0.19401531,103200.0,103190.0,0.68999405]
[1737936554361,0.280613,103230.0,103190.0,0.6314201]
[1737936554559,0.196813,103230.0,103220.0,0.13531005]
[1737936555061,0.193796,103240.0,103220.0,0.49611005]
[1737936555254,0.17321855,103250.0,103240.0,0.19379]
[1737936555459,0.17321855,103250.0,103240.0,0.68990005]
[1737936555663,0.17321855,103250.0,103240.0,0.55459]
[1737936555859,0.72779055,103250.0,103230.0,0.55474831]